Workbook

Sheet 1
A1: Согласовано:
A2: Начальник отдела образования
A3: исполнительного комитета
A4: Мамадышского муниципального района
B5: И.Н.Габдрахманов
A7: Примерное двухнедельное меню школьных завтраков для организации питания детей , .С прибыванием детей до 6 часов (5-11кл)
A8: Использован: Сборник рецептур блюд и кулинарных изделий для предприятий общетвенного питания 1993 и 1996гг.Сборник рецептур блюд и кулинарный изделий татарской нацинальной кухни 1997г.
A9: № рецепта | B9: Наименование блюд | C9: Основные компоненты | D9: Брутто | E9: Нетто | F9: Выход | G9: Белки | H9: Жиры | I9: Углеводы | J9: Ккал | K9: Всего | M9: В том числе
M10: Бюджет | O10: За счет собственной продукции | Q10: Родительский взнос плата
K11: Цена за кг | L11: Сумма | M11: Цена за кг | N11: Сумма | O11: Цена за кг | P11: Сумма | Q11: Цена за кг | R11: Сумма
A12: 1 день
A13: №10 | B13: салат из свежей капусты | C13: капуста | D13: 99.6 | E13: 79 | G13: 1.4 | I13: 3.7 | J13: 21.3 | K13: 25 | L13: =D13*K13/1000 -> 2.49 | N13: =D13*M13/1000 -> 0.00 | O13: 25 | P13: =D13*O13/1000 -> 2.49
C14: лук | D14: 12.5 | E14: 10 | G14: 0.14 | I14: 0.91 | J14: 4.1 | K14: 30 | L14: =D14*K14/1000 -> 0.38 | N14: =D14*M14/1000 -> 0.00 | O14: 30 | P14: =D14*O14/1000 -> 0.38
C15: морковь | D15: 12.5 | E15: 10 | G15: 0.1 | I15: 0.7 | J15: 3.4 | K15: 35 | L15: =D15*K15/1000 -> 0.44 | N15: =D15*M15/1000 -> 0.00 | O15: 35 | P15: =D15*O15/1000 -> 0.44
C16: сахар | D16: 5 | E16: 5 | I16: 4.9 | J16: 18.9 | K16: 80 | L16: =D16*K16/1000 -> 0.40 | N16: =D16*M16/1000 -> 0.00 | O16: 80 | P16: =D16*O16/1000 -> 0.40
C17: масло растительное | D17: 5 | E17: 5 | H17: 4.99 | J17: 44.9 | K17: 140 | L17: =D17*K17/1000 -> 0.70 | M17: 140 | N17: =D17*M17/1000 -> 0.70 | P17: =D17*O17/1000 -> 0.00
C18: итого | F18: 100
A19: №610 | B19: Биточки из говядины | C19: Говядина (котлетное мясо) | D19: 72 | E19: 72 | G19: 6.32 | H19: 4.08 | J19: 55.59 | K19: 500 | L19: =D19*K19/1000 -> 36.00 | N19: =D19*M19/1000 -> 0.00 | P19: =D19*O19/1000 -> 0.00 | Q19: 500 | R19: =D19*Q19/1000 -> 36
C20: Сухари | D20: 1 | E20: 2 | G20: 0.22 | H20: 0.02 | I20: 1.44 | J20: 6.62 | K20: 100 | L20: 0.10 | M20: 100 | N20: 0.10 | P20: 0.00
C21: Хлеб ржанойй | D21: 7 | E21: 7 | G21: 0.57 | H21: 0.06 | I21: 0.47 | J21: 15.82 | K21: 78 | L21: 0.55 | M21: 51 | N21: 0.36 | P21: 0.00
C22: Масло сливочное | D22: 5 | E22: 5 | G22: 0.04 | H22: 3.6 | I22: 0.06 | J22: 33.05 | K22: 900 | L22: 4.50 | M22: 900 | N22: 4.50 | P22: 0.00
C23: Соль | D23: 0.6 | E23: 0.6 | G23: - | H23: - | I23: - | J23: - | K23: 16 | L23: 0.01 | M23: 16 | N23: 0.01 | P23: 0.00
C24: Масса п/ф | E24: 50 | G24: - | I24: - | J24: - | L24: 0.00 | N24: 0.00 | P24: 0.00
C25: Масло растительное | D25: 3 | E25: 3 | G25: - | H25: 1.99 | I25: - | J25: 17.98 | K25: 140 | L25: 0.42 | M25: 140 | N25: 0.42 | P25: 0.00
F26: 100
L27: =D27*K27/1000 -> 0.00 | N27: =D27*M27/1000 -> 0.00 | P27: =D27*O27/1000 -> 0.00
A28: №746 | B28: Каша гречневая | C28: Крупа гречневая | D28: 50 | G28: 5.9 | H28: 1.65 | I28: 30.95 | J28: 167.5 | K28: 100 | L28: =D28*K28/1000 -> 5.00 | M28: 100 | N28: =D28*M28/1000 -> 5.00 | P28: =D28*O28/1000 -> 0.00
C29: Масло сливочное | D29: 5 | G29: 0.04 | H29: 3.6 | I29: 0.06 | J29: 33.05 | K29: 900 | L29: =D29*K29/1000 -> 4.50 | M29: 900 | N29: =D29*M29/1000 -> 4.50 | P29: =D29*O29/1000 -> 0.00
C30: Соль | D30: 0.5 | G30: - | H30: - | K30: 16 | L30: =D30*K30/1000 -> 0.01 | M30: 16 | N30: =D30*M30/1000 -> 0.01 | P30: =D30*O30/1000 -> 0.00
C31: итого | F31: 180
A32: №944 | B32: Чай с сахаром | C32: Заварка | D32: 1 | E32: 1 | G32: 0.04 | H32: - | I32: - | K32: 688 | L32: =D32*K32/1000 -> 0.69 | M32: 688 | N32: =D32*M32/1000 -> 0.69 | P32: =D32*O32/1000 -> 0.00
C33: Сахар | D33: 15 | E33: 15 | G33: 0 | I33: 14.9 | J33: 58 | K33: 80 | L33: =D33*K33/1000 -> 1.20 | M33: 80 | N33: =D33*M33/1000 -> 1.20 | P33: =D33*O33/1000 -> 0.00
C34: итого | F34: 200/7 | Q34: =SUM(Q32:Q33) -> 0
B35: хлеб | C35: хлеб | D35: 20 | E35: 20 | F35: 20 | K35: 76 | L35: 1.02 | M35: 76 | N35: 1.02
B36: хлеб | C36: хлеб | D36: 30 | E36: 30 | F36: 30 | G36: 12.16 | H36: 1.44 | I36: 79.76 | J36: 180.8 | K36: 78 | L36: =D36*K36/1000 -> 2.34 | M36: 78 | N36: =D36*M36/1000 -> 2.34 | P36: =D36*O36/1000 -> 0.00
C37: итого | F37: 50 | L37: =SUM(L13:L36) -> 60.73 | N37: =SUM(N13:N36) -> 20.84 | P37: =SUM(P13:P36) -> 3.70 | R37: =R19 -> 36
B38: итого за день

Sheet 2
A1: № рецепта | B1: Наименование блюд | C1: Основные компоненты | D1: Брутто | E1: Нетто | F1: Выход | G1: Белки | H1: Жиры | I1: Углеводы | J1: Ккал | K1: Всего | M1: В том числе
B2: 2 день | M2: Бюджет | O2: За счет собственной продукции | Q2: Родительский взнос плата
K3: Цена за кг | L3: Сумма | M3: Цена за кг | N3: Сумма | O3: Цена за кг | P3: Сумма | Q3: Цена за кг | R3: Сумма
A4: №273
C7: итого | F7: 100 | G7: =SUM(G4:G6) -> 0 | H7: 0 | I7: 0 | J7: 0 | K7: 0 | L7: 0 | M7: 0 | N7: 0 | O7: 0 | P7: 0 | Q7: 0 | R7: 0
A8: №411 | B8: Фрукты | C8: Яблоки | D8: 100 | E8: 100 | F8: 100 | G8: 0 | H8: 0 | I8: 10.98 | J8: 47.52 | K8: 100 | L8: =K8/1000*D8 -> 10.00 | N8: 0.00 | P8: 0.00 | Q8: 100 | R8: =D8*K8/1000 -> 10
B9: Рагу из птицы | C9: курица | D9: 100 | E9: 100 | K9: 270 | L9: =K9/1000*D9 -> 27.00 | N9: 0.00 | Q9: 270 | R9: =D9*Q9/1000 -> 27.00
C10: картофель | D10: 63.7 | G10: 0.6 | H10: 0.12 | I10: 4.98 | J10: 24.4 | K10: 25 | L10: 1.59 | N10: =D10*M10/1000 -> 0.00 | O10: 25 | P10: =D10*O10/1000 -> 1.59 | R10: =D10*Q10/1000 -> 0
C11: соль | D11: 2 | E11: 2 | K11: 16 | L11: 0.03 | N11: 0.00 | P11: 0.00 | Q11: 16 | R11: 0.032
C12: морковь | D12: 28.4 | E12: 22.7 | G12: 0.19 | I12: 1.08 | J12: 5.13 | K12: 35 | L12: 0.99 | N12: 0.00 | O12: 35 | P12: 0.99 | R12: 0
C13: лук | D13: 14.3 | E13: 12 | G13: 0.1 | I13: 1.08 | J13: 3.28 | K13: 30 | L13: 0.43 | N13: 0.00 | O13: 30 | P13: 0.43 | R13: 0
C14: капуста | D14: 69.8 | E14: 57 | G14: 0.6 | H14: 0.03 | I14: 0.72 | J14: 9.9 | K14: 25 | L14: 1.75 | N14: =D14*M14/1000 -> 0.00 | O14: 25 | P14: =D14*O14/1000 -> 1.75 | R14: =D14*Q14/1000 -> 0
C15: масло растительное | D15: 4 | E15: 4 | G15: 0.048 | H15: 4.35 | I15: 0.156 | J15: 39.66 | K15: 140 | L15: 0.56 | N15: 0.00 | P15: 0.00 | Q15: 140 | R15: =D15*K15/1000 -> 0.56
C16: томат паста | D16: 2 | E16: 2 | G16: 0.4 | H16: 2.9 | I16: 0.05 | J16: 9.9 | K16: 175 | L16: 0.35 | N16: 0.00 | P16: 0.00 | Q16: 175 | R16: =D16*K16/1000 -> 0.35
F17: 180
A18: №959 | B18: Кофейный напиток с молоком | C18: Кофейный напиток | D18: 5 | E18: 5 | F18: 5 | G18: 54 | H18: 2.16 | I18: 0.74 | J18: 24.42 | K18: 500 | L18: 2.50 | M18: 500 | N18: =D18*K18/1000 -> 2.5 | R18: 0
C19: Сахар | D19: 20 | E19: 20 | F19: 20 | G19: 0 | H19: 0 | I19: 11.088 | J19: 42.67 | K19: 80 | L19: 1.60 | M19: 80 | N19: =D19*K19/1000 -> 1.6 | R19: 0
C20: Молоко | D20: 100 | E20: 100 | F20: 100 | G20: 2.82 | H20: 3.2 | I20: 4.3 | J20: 58 | K20: 83 | L20: 8.30 | M20: 83
C21: выход | F21: 200 | N21: =D21*K21/1000 -> 0.00 | R21: 0.00
B22: хлеб пшеничный | C22: хлеб | D22: 30 | E22: 30 | F22: 30 | G22: 6.96 | H22: 1.2 | I22: 46 | J22: 167.2 | K22: 78 | L22: 2.34 | N22: =D22*M22/1000 -> 0.00 | O22: =G22*N22/1000 -> 0.00 | P22: 0.00 | Q22: 78 | R22: =D22*K22/1000 -> 2.34
B23: хлеб пшенично-ржаной | C23: хлеб | D23: 20 | E23: 20 | F23: 20 | G23: 6.96 | H23: 1.02 | I23: 46 | J23: 167.2 | K23: 76 | L23: 1.52 | N23: =D23*M23/1000 -> 0.00 | Q23: 76.00 | R23: =D23*Q23/1000 -> 1.52
C25: итого | L25: 0.0 | P25: 0.0 | R25: 0.0
A26: итого за день | L26: =SUM(L8:L25) -> 58.96 | N26: =SUM(N8:N25) -> 4.10 | P26: =SUM(P8:P25) -> 4.76 | R26: =SUM(R8:R25) -> 41.80

Sheet 3
A1: № рецепта | B1: Наименование блюд | C1: Основные компоненты | D1: Брутто | E1: Нетто | F1: Выход | G1: Белки | H1: Жиры | I1: Углеводы | J1: Ккал | K1: Всего | M1: В том числе
B2: 3 день | M2: Бюджет | O2: За счет собственной продукции | Q2: Родительский взнос плата
K3: Цена за кг | L3: Сумма | M3: Цена за кг | N3: Сумма | O3: Цена за кг | P3: Сумма | Q3: Цена за кг | R3: Сумма
A5: №610 | B5: Гуляш из говядины | C5: Говядина | D5: 87 | E5: 74 | G5: 16.89 | H5: 12.9 | J5: 174.9 | K5: 500 | L5: =D5*K5/1000 -> 43.50 | P5: =D5*O5/1000 -> 0.00 | Q5: 500 | R5: =D5*Q5/1000 -> 43.5
C6: Масло растительное | D6: 5 | E6: 5 | H6: 4.99 | J6: 44.95 | K6: 140 | L6: 0.70 | M6: 140 | N6: =D6*M6/1000 -> 0.70 | P6: 0.00 | R6: 0
C7: Лук репчатый | D7: 18 | E7: 15 | G7: 0.21 | H7: - | I7: 1.36 | J7: 6.15 | K7: 30 | L7: 0.54 | O7: 30 | P7: =D7*O7/1000 -> 0.54 | R7: 0
C8: Томат паста | D8: 3.2 | E8: 3.2 | G8: 0.43 | I8: 1.87 | J8: 9.16 | K8: 175 | L8: 0.56 | M8: 175 | N8: 0.56 | P8: 0.00 | R8: 0
C9: Соль | D9: 1 | E9: 3 | G9: - | H9: - | I9: - | J9: - | K9: 16 | L9: 0.02 | M9: 16 | N9: 0.02 | P9: 0.00 | R9: 0
C10: Масса тушен.мяса | E10: 50 | G10: - | I10: - | J10: - | L10: 0.00 | P10: 0.00 | R10: 0
C11: Мука | D11: 4 | E11: 4 | G11: 0.43 | H11: 0.04 | I11: 2.72 | J11: 13.08 | K11: 40 | L11: 0.16 | P11: 0.00 | Q11: 40 | R11: =D11*Q11/1000 -> 0.16
F12: 100 | G12: 18.19 | H12: 17.93 | I12: 6.92 | J12: 250.4
A13: №746 | B13: Макароны отварные | C13: макароны | D13: 51 | G13: 3.5 | H13: 0.37 | I13: 23.6 | J13: 114.5 | K13: 60 | L13: =D13*K13/1000 -> 3.06 | M13: 60 | N13: =D13*M13/1000 -> 3.1 | P13: =D13*O13/1000 -> 0.00 | R13: 0
C14: Соль | D14: 3 | G14: - | H14: - | I14: - | J14: - | K14: 16 | L14: =D14*K14/1000 -> 0.05 | M14: 16 | N14: =D14*M14/1000 -> 0.05 | P14: =D14*O14/1000 -> 0.00 | R14: 0
C15: Масло слив | D15: 5 | G15: 0.02 | H15: 2.5 | I15: 0.04 | J15: 23.1 | K15: 900 | L15: =D15*K15/1000 -> 4.50 | M15: 900 | N15: =D15*M15/1000 -> 4.50 | P15: =D15*O15/1000 -> 0.00 | R15: 0
C16: итого | F16: 180 | G16: =SUM(G13:G15) -> 3.52 | H16: 2.87 | I16: 23.64 | J16: 137.6
A17: №944 | B17: Чай с сахаром | C17: заварка | D17: 1 | E17: 1 | F17: 1 | K17: 688 | L17: 6.88 | M17: 688 | N17: 6.88
C18: Сахар | D18: 15 | E18: 15 | G18: 0 | H18: - | I18: 14.9 | J18: 56.8 | K18: 80 | L18: =D18*K18/1000 -> 1.20 | M18: 80 | N18: =D18*M18/1000 -> 1.20 | P18: =D18*O18/1000 -> 0.00 | R18: 0
C19: итого | F19: 200 | G19: =SUM(G17:G18) -> 0
B20: хлеб иодированный | C20: хлеб | D20: 30 | E20: 30 | F20: 30 | G20: 6.96 | H20: 1.2 | I20: 46 | J20: 167.2 | K20: 78 | L20: 1.8 | M20: 78 | N20: 1.8
C21: хлеб | D21: 20 | E21: 20 | F21: 20 | G21: 6.96 | H21: 1.2 | I21: 46 | J21: 167.2 | K21: 76 | L21: =D21*K21/1000 -> 1.52 | M21: 76 | N21: =D21*K21/1000 -> 1.52 | P21: =D21*O21/1000 -> 0.00 | R21: 0
G23: =SUM(G22:G22) -> 0 | H23: =SUM(H22:H22) -> 0 | I23: =SUM(I22:I22) -> 0 | J23: =SUM(J22:J22) -> 0 | L23: 0.00 | M23: =SUM(M22:M22) -> 0.00 | N23: 0.00 | O23: 0.00 | P23: 0.00 | Q23: 0.00 | R23: 0.00
A24: итого за день | G24: =G23+G21+G19+G11 -> 7.390 | H24: =H23+H21+H19+H11 -> 1.240 | I24: =I23+I21+I19+I11 -> 48.720 | J24: =J23+J21+J19+J11 -> 180.280 | L24: =SUM(L5:L23) -> 64.484 | N24: =SUM(N6:N23) -> 20.28 | P24: =SUM(P5:P23) -> 0.540 | R24: =SUM(R5:R23) -> 43.66

Sheet 4
A3: № рецепта | B3: Наименование блюд | C3: Основные компоненты | D3: Брутто | E3: Нетто | F3: Выход | G3: Белки | H3: Жиры | I3: Углеводы | J3: Ккал | K3: Всего | M3: В том числе
M4: Бюджет | O4: За счет собственной продукции | Q4: Родительский взнос плата
K5: Цена за кг | L5: Сумма | M5: Цена за кг | N5: Сумма | O5: Цена за кг | P5: Сумма | Q5: Цена за кг | R5: Сумма
A6: 4 день
A7: №273 | B7: Салат из моркови | C7: Морковь | D7: 65 | E7: 60 | F7: 60 | G7: 1.3 | H7: 0.08 | I7: 6.06 | J7: 27.2 | K7: 35 | L7: =D7*K7/1000 -> 2.28 | O7: 35 | P7: 2.27
C8: Масло растительное | D8: 6 | E8: 6 | F8: 6 | G8: 0 | H8: 6.93 | I8: 0 | J8: 62.93 | K8: 140 | L8: =D8*K8/1000 -> 0.84 | Q8: 140 | R8: =D8*Q8/1000 -> 0.84
C9: Сахарный песок | D9: 6 | E9: 6 | F9: 6 | G9: 0 | H9: 0 | I9: 9.98 | J9: 37.9 | K9: 80 | L9: 0.48 | Q9: 80 | R9: =D9*Q9/1000 -> 0.48
C11: итого | F11: 60
A12: №517 | B12: Котлеты Рыбные | C12: Котлеты рыбные п/ф из судака(трески) | D12: 100 | E12: 100 | G12: 27.4 | H12: 5.24 | I12: 0 | J12: 110 | K12: 325 | L12: 32.50 | N12: 0.00 | P12: 0.00 | Q12: 325 | R12: =D12*Q12/1000 -> 32.5
F13: 100
L16: 0.00 | N16: =D16*M16/1000 -> 0.00 | P16: =D16*O16/1000 -> 0.00 | R16: =D16*Q16/1000 -> 0
A17: №442 | B17: Картофельное пюре | C17: Картофель | D17: 170 | E17: 150 | G17: 5.01 | H17: 0.72 | I17: 31.19 | J17: 144.29 | K17: 25 | L17: 4.25 | O17: 25 | P17: 4.3
C18: Молоко 2,5 | D18: 24 | E18: 24 | G18: 0.67 | H18: 0.76 | I18: 1.12 | J18: 13.9 | K18: 83 | L18: 1.99 | M18: 83 | N18: =D18*M18/1000 -> 1.99
C19: Масло слив | D19: 5.2 | G19: 0.04 | H19: 3.77 | I19: 0.13 | J19: 34.37 | K19: 900 | L19: 4.68 | M19: 900 | N19: =D19*M19/1000 -> 4.68
C20: Соль | D20: 1 | K20: 16 | L20: 0.02 | M20: 16 | N20: 0.02
F21: 180
A22: №944 | B22: Чай с сахаром | C22: Заварка | D22: 1 | E22: 1 | G22: 0.04 | H22: - | I22: - | K22: 688 | L22: 0.69 | M22: 688 | N22: =D22*M22/1000 -> 0.69 | P22: =D22*O22/1000 -> 0.00 | R22: =D22*Q22/1000 -> 0
C23: Сахар | D23: 15 | E23: 15 | G23: 0 | I23: 14.9 | J23: 58 | K23: 80 | L23: 1.20 | M23: 80 | N23: =D23*M23/1000 -> 1.20 | P23: =D23*O23/1000 -> 0.00 | R23: =D23*Q23/1000 -> 0
C24: итого | F24: 200/7 | L24: 0.00
B25: хлеб | C25: хлеб | D25: 30 | E25: 30 | F25: 30 | G25: 12.16 | H25: 1.44 | I25: 79.76 | J25: 180.8 | K25: 78 | L25: 2.34 | M25: 78 | N25: =D25*M25/1000 -> 2.34 | P25: =D25*O25/1000 -> 0.00 | R25: =D25*Q25/1000 -> 0
C26: хлеб | D26: 20 | E26: 20 | F26: 20 | K26: 76 | L26: 1.52 | M26: 76 | N26: =D26*K26/1000 -> 1.52
C27: итого | F27: 50 | G27: =SUM(G26:G26) -> 0 | H27: 0 | I27: 0 | J27: 0 | L27: 0 | N27: 0 | O27: 0 | P27: 0.00 | Q27: 0 | R27: 0
G28: =G11+G15+G20+G24+G25+G27 -> 12.16 | H28: 1.44 | I28: 79.76 | J28: 180.8 | K28: 94 | L28: =SUM(L7:L27) -> 52.78 | N28: =SUM(N18:N27) -> 12.44 | P28: =SUM(P7:P27) -> 6.52 | R28: =SUM(R8:R27) -> 33.82
A29: итого за день

Sheet 5
A1: № рецепта | B1: Наименование блюд | C1: Основные компоненты | D1: Брутто | E1: Нетто | F1: Выход | G1: Белки | H1: Жиры | I1: Углеводы | J1: Ккал | K1: Всего | M1: В том числе
B2: 5 день | M2: Бюджет | O2: За счет собственной продукции | Q2: Родительский взнос плата
K3: Цена за кг | L3: Сумма | M3: Цена за кг | N3: Сумма | O3: Цена за кг | P3: Сумма | Q3: Цена за кг | R3: Сумма
B4: Фрукты | C4: Яблоки | D4: 100 | E4: 100 | F4: 100 | G4: 0.08 | H4: 0.069 | I4: 1.79 | J4: 7.8 | K4: 100.00 | L4: =D4*K4/1000 -> 10.00 | Q4: 100 | R4: =D4*Q4/1000 -> 10
B5: Котлеты рубленные из птицы | C5: Котлета куриная | D5: 90 | E5: 80 | G5: 11 | H5: 13.5 | I5: 4.78 | J5: 185 | K5: 360.00 | L5: =D5*K5/1000 -> 32.40 | Q5: 360 | R5: =D5*Q5/1000 -> 32.4
C6: Сухари | D6: 8 | E6: 8 | K6: 100 | L6: 0.80 | M6: 78 | N6: =D6*K6/1000 -> 0.8
C7: Масло сливоч | D7: 2 | E7: 2 | K7: 900 | L7: 1.80 | N7: 0 | Q7: 900 | R7: 1.8
C8: Масло растительное | D8: 5 | E8: 5 | K8: 140 | L8: 0.70 | N8: 0 | Q8: 140 | R8: 0.7
F9: 100
B10: Рис отварной | C10: рис | D10: 55 | E10: 55 | G10: 1.16 | H10: 0.42 | I10: 10.58 | J10: 52.55 | K10: 90 | L10: 4.95 | N10: 0 | Q10: 90 | R10: 4.95
C11: масло сливочное | D11: 7 | E11: 7 | G11: 0.04 | H11: 3.63 | I11: 0.13 | J11: 33.05 | K11: 900 | L11: 6.30 | N11: 0 | P11: =D11*O11/1000 -> 0.00 | Q11: 900 | R11: 6.3
C12: Соль | D12: 1 | E12: 1 | G12: - | H12: - | I12: - | J12: - | K12: 16 | L12: 0.02 | M12: 16 | N12: =D12*K12/1000 -> 0.016 | P12: =D12*O12/1000 -> 0.00 | R12: 0
C13: итого | F13: 180 | N13: 0 | R13: 0
A14: №944 | B14: Чай с лимоном | C14: заварка | D14: 1 | E14: 1 | G14: 0 | H14: 0 | I14: 0 | J14: 0 | K14: 688 | L14: 0.69 | M14: 688 | N14: 0.688 | P14: =D14*O14/1000 -> 0.00 | Q14: 0 | R14: 0
C15: лимон | D15: 8 | E15: 8 | G15: 0 | H15: 0 | I15: 0 | J15: 0 | K15: 170 | L15: 1.36 | N15: 0 | P15: =D15*O15/1000 -> 0.00 | Q15: 170 | R15: 1.36
C16: Сахар | D16: 15 | E16: 15 | I16: 19.96 | J16: 75 | K16: 80 | L16: 1.20 | M16: 80 | N16: 1.2 | P16: =D16*O16/1000 -> 0.00 | R16: 0
F17: 200 | L17: 0.00 | N17: 0 | R17: 0
B18: хлеб | C18: хлеб | D18: 20 | E18: 20 | F18: 20 | G18: 6.96 | H18: 1.2 | I18: 32.96 | J18: 181 | K18: 78 | L18: 1.56 | M18: 51 | N18: 1.56 | R18: 0
B19: хлеб | C19: хлеб | D19: 30 | E19: 30 | F19: 30 | H19: 1.2 | I19: 46 | J19: 167.2 | K19: 76 | L19: 2.28 | M19: 60 | N19: 2.28 | P19: 0.00 | R19: 0
C20: итого | F20: 75 | L20: =SUM(L4:L19) -> 64.05 | N20: =SUM(N6:N19) -> 6.544 | R20: =SUM(R4:R19) -> 57.51
B21: итого за день

Sheet 6
A1: № рецепта | B1: Наименование блюд | C1: Основные компоненты | D1: Брутто | E1: Нетто | F1: Выход | G1: Белки | H1: Жиры | I1: Углеводы | J1: Ккал | K1: Всего | M1: В том числе
B2: 6 день | M2: Бюджет | O2: За счет собственной продукции | Q2: Родительский взнос плата
K3: Цена за кг | L3: Сумма | M3: Цена за кг | N3: Сумма | O3: Цена за кг | P3: Сумма | Q3: Цена за кг | R3: Сумма
B4: Фрукты | C4: Апельсин | D4: 100 | E4: 100 | F4: 100 | K4: 150.0 | L4: =K4*D4/1000 -> 15 | Q4: 150 | R4: 15
A5: №561 | B5: Мясо тушеное | C5: Говядина | D5: 83 | E5: 60 | G5: 16.7 | H5: 12.9 | I5: 0.0 | J5: 165.5 | K5: 500.0 | L5: =K5*D5/1000 -> 41.5 | Q5: 500 | R5: =D5*K5/1000 -> 41.5
C6: Морковь | D6: 5 | E6: 3 | G6: 0.2 | H6: 0.0 | I6: 0.8 | J6: 3.4 | K6: 35.0 | L6: 0.175 | O6: 35 | P6: 0.17
C7: Лук | D7: 5 | E7: 3 | G7: 0.4 | H7: 0.0 | I7: 2.4 | J7: 10.0 | K7: 30.0 | L7: 0.15 | O7: 30 | P7: 0.15
C8: Масло рас | D8: 5 | E8: 5 | G8: 0.0 | H8: 7.0 | I8: 0.0 | J8: 62.9 | K8: 140.0 | L8: 0.7 | M8: 140 | N8: 0.7
C9: Томатная паста | D9: 7 | E9: 7 | G9: 0.1 | H9: 0.0 | I9: 0.4 | J9: 2.0 | K9: 175.0 | L9: 1.225 | M9: 175 | N9: 1.22
C10: Мука пшенич | D10: 2 | E10: 2 | G10: 0.4 | H10: 0.0 | I10: 2.7 | J10: 13.1 | K10: 40.0 | L10: 0.08 | M10: 40.0 | N10: 0.08
C11: соль | D11: 1 | E11: 1 | F11: 250 | G11: 0.0 | H11: 0.0 | I11: 0.0 | K11: 16.0 | L11: 0.016 | M11: 16.0 | N11: =D11*K11/1000 -> 0.016
F12: 2
A13: №442 | B13: Макароны отварные | C13: Макаронные изделия | D13: 53 | E13: 53 | G13: 4.1 | H13: 0.4 | I13: 27.2 | J13: 142.1 | K13: 60.0 | L13: 3.18 | M13: 60 | N13: =D13*K13/1000 -> 3.18
C14: Масло сливочное | D14: 5 | E14: 5 | G14: 0.1 | H14: 7.3 | I14: 0.3 | J14: 66.1 | K14: 900.0 | L14: 4.5 | Q14: 900 | R14: =D14*K14/1000 -> 4.5
C15: соль | D15: 1 | E15: 1 | K15: 16.0 | L15: 0.016
F16: 180
B17: Чай с сахаром | C17: Заварка | D17: 1 | E17: 1 | G17: 0 | K17: 688 | L17: 0.688 | M17: 688 | N17: =D17*M17/1000 -> 0.69
C18: Сахар | D18: 15 | E18: 15 | G18: =SUM(F18) -> 0 | I18: 14.9 | J18: 56.8 | K18: 80 | L18: 1.2 | M18: 80 | N18: =D18*M18/1000 -> 1.20
C19: итого | F19: 200
B20: хлеб | C20: хлеб | D20: 20 | E20: 20 | F20: 20 | G20: 6.96 | H20: 1.2 | I20: 32.96 | J20: 181 | K20: 76 | L20: 1.52 | M20: 76 | N20: =D20*K20/1000 -> 1.52
C21: хлеб | D21: 30 | E21: 30 | F21: 30 | G21: 6.96 | H21: 1.2 | I21: 46 | J21: 167.2 | K21: 78 | L21: 2.34 | M21: 78 | N21: =D21*K21/1000 -> 2.34 | P21: 0.00 | R21: 0
A22: итого за день | L22: =SUM(L4:L21) -> 72.3 | N22: =SUM(N7:N21) -> 10.9 | P22: =SUM(P6:P21) -> 0.3 | R22: =SUM(R4:R21) -> 61.0

Sheet 7
A1: № рецепта | B1: Наименование блюд | E1: Основные компоненты | F1: Брутто | G1: Нетто | H1: Выход | I1: Белки | J1: Жиры | K1: Углеводы | L1: Ккал | M1: Всего | O1: В том числе
O2: Бюджет | Q2: За счет собственной продукции | S2: Родительский взнос плата
B3: 7 день | M3: Цена за кг | N3: Сумма | O3: Цена за кг | P3: Сумма | Q3: Цена за кг | R3: Сумма | S3: Цена за кг | T3: Сумма
B4: Фрукты | E4: Апельсин | F4: 100 | G4: 100 | H4: 100 | I4: 0 | J4: 0 | K4: 10.9 | L4: 47.52 | M4: 150 | N4: 15 | O4: 150 | P4: 15 | S4: 150 | T4: 15
A6: №326 | B6: Сосиски говяжие | E6: сосиски гов | F6: 102 | G6: 100 | H6: 100 | I6: 18.4 | J6: 11.9 | L6: 161.9 | M6: 380 | N6: =F6*M6/1000 -> 38.76 | P6: 0.00 | R6: =F6*Q6/1000 -> 0.00 | S6: 380 | T6: =F6*M6/1000 -> 38.76
E7: Гречка | F7: 54 | G7: 40 | K7: 5.99 | L7: 215.2 | M7: 100 | N7: =F7*M7/1000 -> 5.40 | P7: 0.00 | R7: 0.00 | T7: =F7*M7/1000 -> 5.4
B8: Каша гречневая | E8: Слив масло | F8: 5 | G8: 5 | I8: 0.04 | J8: 3.63 | K8: 0.13 | L8: 157.9 | M8: 900 | N8: 4.50 | P8: 0.00 | S8: 800 | T8: 4.5
E9: соль | F9: 1 | G9: 1 | M9: 16 | N9: 0.02 | P9: 0.00 | R9: 0.00 | T9: 0.016
H10: 180
A11: №944 | B11: Какао с молоком | E11: Какао | F11: 4 | G11: 4 | K11: - | L11: - | M11: 271 | N11: 1.08 | O11: 271 | P11: =F11*M11/1000 -> 1.08 | R11: =F11*Q11/1000 -> 0.00 | T11: 0
E12: Сахар | F12: 15 | G12: 15 | K12: 14.9 | L12: 56.8 | M12: 80 | N12: 1.20 | O12: 80 | P12: 1.20 | R12: =F12*Q12/1000 -> 0.00 | T12: 0
E13: Молоко | F13: 100 | G13: 100 | H13: 200 | M13: 83 | N13: 8.30 | P13: 8.30 | R13: =F13*Q13/1000 -> 0 | T13: 0
E14: хлеб | F14: 20 | G14: 20 | H14: 20 | I14: 6.96 | J14: 1.2 | K14: 32.96 | L14: 181 | M14: 76 | N14: 1.52 | O14: 76 | P14: 1.52 | T14: 0
B15: хлеб | E15: хлеб | F15: 30 | G15: 30 | H15: 30 | I15: 6.96 | J15: 1.2 | K15: 32.96 | L15: 167.2 | M15: 78 | N15: 2.34 | O15: 78 | P15: 2.34 | R15: =F15*Q15/1000 -> 0.00 | T15: 0
A16: итого за день | N16: =SUM(N6:N15) -> 63.12 | P16: =SUM(P6:P15) -> 14.44 | T16: =SUM(T6:T15) -> 48.68

Sheet 8
A1: № рецепта | B1: Наименование блюд | C1: Основные компоненты | D1: Брутто | E1: Нетто | F1: Выход | G1: Белки | H1: Жиры | I1: Углеводы | J1: Ккал | K1: Всего | M1: В том числе
M2: Бюджет | O2: За счет собственной продукции | Q2: Родительский взнос плата
B3: 8 день | K3: Цена за кг | L3: Сумма | M3: Цена за кг | N3: Сумма | O3: Цена за кг | P3: Сумма | Q3: Цена за кг | R3: Сумма
B8: Плов из птицы | C8: Курица | D8: 90 | E8: 50 | G8: 12.8 | H8: 20.1 | I8: 0.5 | J8: 225 | K8: 270 | L8: =D8*K8/1000 -> 24.30 | Q8: 270 | R8: =D8*K8/1000 -> 24.3
C9: масло рас | D9: 7 | E9: 7 | G9: 0.04 | H9: 3.63 | I9: 13.2 | J9: 33.05 | K9: 140 | L9: =D9*K9/1000 -> 0.98 | Q9: 140 | R9: =D9*K9/1000 -> 0.98
C10: лук | D10: 10 | E10: 8 | R10: 0
C11: морковь | D11: 15 | E11: 10 | R11: 0
C12: Томат паста | D12: 5 | E12: 5 | G12: 0.23 | H12: 0 | I12: 0.97 | J12: 2.16 | K12: 175 | L12: 0.88 | Q12: 175 | R12: 0.875
C13: рис | D13: 35 | E13: 35 | G13: 1.16 | H13: 0.42 | I13: 10.58 | J13: 52.55 | K13: 90 | L13: 3.15 | M13: 90 | N13: =D13*K13/1000 -> 3.15
C14: соль | D14: 1 | E14: 1 | K14: 16.00 | L14: 0.02 | N14: =D14*K14/1000 -> 0.02
F15: 250
A16: №944 | B16: Чай с сахаром с лимоном | C16: заварка | D16: 1 | E16: 1 | K16: 688 | L16: 0.69 | N16: 0.69 | P16: =D16*O16/1000 -> 0.00
C17: лимон | D17: 8 | E17: 7 | K17: 170 | L17: 1.36 | M17: 170 | N17: 1.36
C18: Сахар | D18: 15 | E18: 15 | I18: 19.96 | J18: 75.8 | K18: 80 | L18: 1.20 | M18: 80 | N18: 1.20 | P18: =D18*O18/1000 -> 0.00
F19: 200 | L19: 0.00 | N19: 0.00 | P19: =SUM(P16:P18) -> 0
C20: хлеб | D20: 20 | E20: 20 | G20: 6.96 | H20: 1.2 | I20: 46 | J20: 167.2 | K20: 76 | L20: 1.52 | M20: 76 | N20: 1.52
B21: хлеб | C21: хлеб | D21: 30 | E21: 30 | G21: 6.96 | H21: 1.2 | I21: 46 | J21: 167.2 | K21: 78 | L21: 2.34 | M21: 78 | N21: 2.34 | P21: =D21*O21/1000 -> 0.00 | Q21: =I21*P21/1000 -> 0.00 | R21: 0
C22: итого | F22: 60 | L22: =SUM(L8:L21) -> 36.43 | N22: =SUM(N13:N21) -> 10.27 | R22: =SUM(R8:R21) -> 26.155
B23: итого за день

Sheet 9
A1: № рецепта | C1: Основные компоненты | D1: Брутто | E1: Нетто | F1: Выход | G1: Белки | H1: Жиры | I1: Углеводы | J1: Ккал | K1: Всего | M1: В том числе
B2: Наименование блюд | M2: Бюджет | O2: За счет собственной продукции | Q2: Родительский взнос плата
B3: 9 день | K3: Цена за кг | L3: Сумма | M3: Цена за кг | N3: Сумма | O3: Цена за кг | P3: Сумма | Q3: Цена за кг | R3: Сумма
C4: капуста | D4: 60 | E4: 50 | G4: 0.15 | I4: 2.85 | J4: 13.5 | K4: 25 | L4: =D4*K4/1000 -> 1.5 | O4: 25 | P4: =D4*K4/1000 -> 1.50
A5: №273 | B5: Салат из св капусты | C5: Морковь | D5: 8 | E5: 5 | G5: 1.1 | H5: 0.8 | I5: 6.1 | J5: 29.2 | K5: 25.00 | L5: =D5*K5/1000 -> 0.2 | O5: 25 | P5: =D5*K5/1000 -> 0.20
C6: сахарный песок | D6: 3 | E6: 3 | I6: 9.98 | J6: 37.9 | K6: 80.00 | L6: 0.24 | O6: 80 | P6: 0.24
C7: соль | D7: 1 | E7: 1 | K7: 16.00 | L7: 0.016 | M7: 16.00 | N7: =D7*K7/1000 -> 0.02
C8: Масло растительное | D8: 7 | G8: - | H8: 9.9 | J8: 89.9 | K8: 140.00 | L8: 0.98 | M8: 140.00 | N8: =D8*M8/1000 -> 0.98
C9: итого | F9: 100
B10: Котлеты рыбные | C10: котлеты рыбные | D10: 102 | E10: 100 | G10: 27.4 | H10: 5.24 | I10: 0 | J10: 110 | K10: 325 | L10: 33.15 | Q10: 325.00 | R10: =D10*Q10/1000 -> 33.15
C11: Соль | D11: 2 | E11: 2 | K11: 16 | L11: 0.032 | M11: 16 | N11: =D11*M11/1000 -> 0.03
C12: Масло растительное | D12: 2 | E12: 2 | H12: 0.24 | J12: 22.45 | K12: 140 | L12: 0.28 | M12: 140 | N12: 0.28
F13: 100
A14: №442 | B14: картофельное пюре | C14: картофель | D14: 170 | G14: 2 | H14: 0.4 | I14: 16.3 | J14: 80 | K14: 25 | L14: 4.25 | O14: 25 | P14: =D14*K14/1000 -> 4.25
B15: пюре | C15: молоко | D15: 24 | G15: 6.4 | H15: 0.39 | I15: 0.74 | J15: 8.2 | K15: 83 | L15: 1.992 | M15: 83 | N15: 1.99
C16: Соль | D16: 1 | G16: - | H16: - | I16: - | J16: - | K16: 16 | L16: 0.016 | M16: 16 | N16: 0.02
C17: Масло слив | D17: 5 | G17: 0.02 | H17: 2.5 | I17: 0.04 | J17: 23.1 | K17: 900 | L17: 4.5 | M17: 900 | N17: 4.50
C18: итого | F18: 180
A19: 944 | B19: Чай с сахаром | C19: Заварка | D19: 1 | E19: 1 | H19: - | I19: - | J19: - | K19: 688 | L19: 0.688 | M19: 688 | N19: 0.69
C20: Сахар | D20: 15 | E20: 15 | H20: - | I20: 14.9 | J20: 56.8 | K20: 80 | L20: 1.2 | M20: 80 | N20: 1.20
C21: итого | F21: 200 | G21: =SUM(G19:G20) -> 0 | H21: =SUM(H19:H20) -> 0 | I21: 14.9 | J21: 56.8 | L21: 0
C22: хлеб | D22: 20 | E22: 20 | G22: 6.96 | H22: 1.2 | I22: 32.96 | J22: 181 | K22: 76 | L22: 1.52 | M22: 76 | N22: 1.52
B23: хлеб | C23: хлеб | D23: 30 | E23: 30 | G23: 6.96 | H23: 1.2 | I23: 32.96 | J23: 167.2 | K23: 78 | L23: 2.34 | M23: 78 | N23: 2.34 | P23: 0.00 | R23: 0
A24: итого за день | L24: =SUM(L4:L23) -> 52.9 | N24: =SUM(N7:N23) -> 13.6 | P24: =SUM(P4:P23) -> 6.2 | R24: =SUM(R10:R23) -> 33.2

Sheet 10
A1: № рецепта | B1: Наименование блюд | C1: Основные компоненты | D1: Брутто | E1: Нетто | F1: Выход | G1: Белки | H1: Жиры | I1: Углеводы | J1: Ккал | K1: Всего | M1: В том числе
M2: Бюджет | O2: За счет собственной продукции | Q2: Родительский взнос плата
B3: 10 день | K3: Цена за кг | L3: Сумма | M3: Цена за кг | N3: Сумма | O3: Цена за кг | P3: Сумма | Q3: Цена за кг | R3: Сумма
A5: №416 | B5: Салат из моркови | C5: морковь | D5: 65 | E5: 50 | G5: 1.1 | I5: 5.43 | J5: 28.9 | K5: 20 | L5: =D5*K5/1000 -> 1.30 | N5: =D5*M5/1000 -> 0.00 | O5: 20 | P5: =D5*O5/1000 -> 1.30 | R5: =D5*Q5/1000 -> 0
C6: соль | D6: 0.5 | K6: 16 | L6: =D6*K6/1000 -> 0.01 | M6: 16 | N6: =D6*M6/1000 -> 0.01 | P6: =D6*O6/1000 -> 0.00 | R6: =D6*Q6/1000 -> 0
C7: масло растительное | D7: 10 | E7: 10 | G7: 0 | H7: 6.93 | J7: 89.9 | K7: 140 | L7: 1.40 | M7: 140 | N7: =D7*M7/1000 -> 1.40 | P7: =D7*O7/1000 -> 0.00 | R7: =D7*Q7/1000 -> 0
C8: итого | F8: 60
N9: =D9*M9/1000 -> 0.00 | P9: =D9*O9/1000 -> 0.00 | R9: =D9*Q9/1000 -> 0
B10: Птица тушеная в соусе | C10: курица | D10: 100 | E10: 50 | G10: 27.4 | H10: 5.24 | I10: 0 | J10: 110 | K10: 270 | L10: 27.00 | N10: 0.00 | P10: 0.00 | Q10: 270.0 | R10: 27
C11: Масло растительное | D11: 2 | E11: 2 | H11: 5.99 | I11: 0 | J11: 53.94 | K11: 140 | L11: 0.28 | M11: 140 | N11: 0.28 | P11: 0.00 | R11: 0
C12: Мука пшеничная | D12: 4 | E12: 4 | G12: 0.62 | H12: 0.06 | I12: 4.13 | J12: 20.04 | K12: 40 | L12: 0.16 | M12: 40 | N12: 0.16 | P12: 0.00 | R12: 0
C13: Соль | D13: 1 | E13: 1 | K13: 16 | L13: 0.02 | M13: 16 | N13: 0.02 | P13: 0.00 | R13: 0
C14: сметана | D14: 13 | E14: 13 | K14: 210 | L14: 2.63 | N14: 0.00 | P14: 0.00 | Q14: 210.0 | R14: 2.625
F15: 250
B16: Макароны отварные | C16: Макаронные изд | D16: 53 | E16: 53 | G16: 5.9 | H16: 1.65 | I16: 30.95 | J16: 167.5 | K16: 60 | L16: 3.18 | N16: =D16*M16/1000 -> 0.00 | P16: =D16*O16/1000 -> 0.00 | Q16: 60 | R16: =D16*Q16/1000 -> 3.18
C17: Масло сливочное | D17: 5 | E17: 5 | G17: 0.04 | H17: 3.6 | I17: 0.06 | J17: 33.05 | K17: 900 | L17: 4.50 | M17: 900 | N17: =D17*M17/1000 -> 4.50 | P17: =D17*O17/1000 -> 0.00 | R17: =D17*Q17/1000 -> 0
A18: №746 | C18: Соль | D18: 1 | E18: 1 | G18: - | H18: - | K18: 16 | L18: 0.02 | M18: 16 | N18: =D18*M18/1000 -> 0.02 | P18: =D18*O18/1000 -> 0.00 | R18: =D18*Q18/1000 -> 0
C19: итого | F19: 180
B20: Кофейный напиток с молоком | C20: кофейный напиток | D20: 5 | E20: 5 | H20: - | I20: - | J20: - | K20: 500 | L20: 2.50 | M20: 500 | N20: =D20*M20/1000 -> 2.50 | P20: =D20*O20/1000 -> 0.00 | R20: =D20*Q20/1000 -> 0
C21: Сахар | D21: 20 | E21: 20 | G21: 0 | H21: - | I21: 14.9 | J21: 56.8 | K21: 80 | L21: 1.60 | M21: 80 | N21: =D21*M21/1000 -> 1.60 | P21: =D21*O21/1000 -> 0.00 | R21: =D21*Q21/1000 -> 0
A22: 944 | C22: итого | F22: 200 | G22: =SUM(G20:G21) -> 0 | L22: 0.00
C23: хлеб | D23: 20 | E23: 20 | F23: 20 | G23: 6.96 | H23: 1.2 | I23: 46 | J23: 167.2 | K23: 76 | L23: 1.52 | M23: 76 | N23: 1.52
B24: хлеб иодированный | C24: хлеб | D24: 30 | E24: 30 | F24: 30 | G24: 6.96 | H24: 1.2 | I24: 46 | J24: 167.2 | K24: 78 | L24: 2.34 | M24: 78 | N24: =D24*M24/1000 -> 2.34 | P24: 0.00 | R24: 0
B25: итого за день | L25: =SUM(L5:L24) -> 48.4 | N25: =SUM(N5:N24) -> 14.3 | P25: =SUM(P5:P24) -> 1.3 | R25: =SUM(R5:R24) -> 32.8

Sheet 11
A1: № рецепта | B1: Наименование блюд | C1: Основные компоненты | D1: Брутто | E1: Нетто | F1: Выход | G1: Белки | H1: Жиры | I1: Углеводы | J1: Ккал | K1: Всего | M1: В том числе
M2: Бюджет | O2: За счет собственной продукции | Q2: Родительский взнос плата
K3: Цена за кг | L3: Сумма | M3: Цена за кг | N3: Сумма | O3: Цена за кг | P3: Сумма | Q3: Цена за кг | R3: Сумма
B4: 11 день
B5: Запеканка картофельная с мясом | C5: говядина котлетное мясо | D5: 63 | E5: 63 | G5: 16.69 | H5: 12.9 | I5: 0 | J5: 165.5 | K5: 500 | L5: =D5*K5/1000 -> 31.50 | Q5: 500 | R5: =D5*K5/1000 -> 31.5
C6: Масло растительное | D6: 5 | E6: 5 | G6: 1.95 | H6: 4.9 | J6: 8.82 | K6: 140 | L6: 0.70 | Q6: 140 | R6: =D6*K6/1000 -> 0.7
C7: Картофель | D7: 230 | E7: 200 | G7: 92 | H7: 0.1 | I7: 6.4 | J7: 26.5 | K7: 25 | L7: 5.75 | O7: 25 | P7: 5.75
C8: лук | D8: 15 | E8: 10 | G8: 0.15 | H8: 0.02 | I8: 0.35 | J8: 1.44 | K8: 30 | L8: 0.45 | O8: 30 | P8: 0.45
C9: масло сливочное | D9: 11 | G9: 0.04 | H9: 3.63 | I9: 0.13 | J9: 33.05 | K9: 900 | L9: 9.90 | Q9: 900 | R9: =D9*Q9/1000 -> 9.9
C10: Соль | D10: 1 | E10: 1 | G10: - | H10: - | I10: - | J10: - | K10: 16 | L10: 0.02 | M10: 16 | N10: =D10*K10/1000 -> 0.02
C11: итого | F11: 250
A12: №944 | B12: Чай с лимоном | C12: заварка | D12: 1 | G12: 1.02 | I12: 21.76 | J12: 87.14 | K12: 688 | L12: 0.69 | M12: 688 | N12: 0.69
C13: сахар | D13: 15 | G13: 1.36 | I13: 29.02 | J13: 116.19 | K13: 80 | L13: 1.20 | M13: 80 | N13: 1.20
C14: лимон | D14: 8 | K14: 170 | L14: 1.36 | M14: 170 | N14: 1.36
F15: 200 | G15: =SUM(G12:G14) -> 2.38 | H15: =SUM(H12:H14) -> 0 | I15: =SUM(I12:I14) -> 50.78 | J15: =SUM(J12:J14) -> 203.33 | L15: 0.00
B16: хлеб | C16: хлеб | D16: 20 | E16: 20 | F16: 20 | G16: 6.96 | H16: 1.2 | I16: 32.96 | J16: 181 | K16: 76 | L16: 1.52 | M16: 76 | N16: 1.52
B17: хлеб | C17: хлеб | D17: 30 | E17: 30 | F17: 30 | G17: 6.96 | H17: 1.2 | I17: 32.96 | J17: 167.2 | K17: 78 | L17: 2.34 | M17: 78 | N17: 2.34
B18: Масло слив. | C18: масло сливочное | D18: 10 | G18: 0.08 | H18: 7.25 | I18: 0.26 | J18: 66.1 | K18: 900 | L18: 9.00 | Q18: 900.00 | R18: =D18*Q18/1000 -> 9
B19: Сыр | C19: Сыр гол. | D19: 15 | F19: 15 | G19: 2.26 | H19: 2.57 | J19: 33.79 | K19: 610 | L19: 9.15 | N19: 0.00 | P19: 0.00 | Q19: 610.00 | R19: =D19*Q19/1000 -> 9.15
C20: итого | L20: =SUM(L5:L19) -> 73.57 | N20: =SUM(N5:N19) -> 7.12 | P20: =SUM(P7:P19) -> 6.20 | R20: =SUM(R5:R19) -> 60.25

Sheet 12
A2: № рецепта | B2: Наименование блюд | C2: Основные компоненты | D2: Брутто | E2: Нетто | F2: Выход | G2: Белки | H2: Жиры | I2: Углеводы | J2: Ккал | K2: Всего | M2: В том числе
M3: Бюджет | O3: За счет собственной продукции | Q3: Родительский взнос плата
B4: 12 день | K4: Цена за кг | L4: Сумма | M4: Цена за кг | N4: Сумма | O4: Цена за кг | P4: Сумма | Q4: Цена за кг | R4: Сумма
A5: №297 | B5: Запеканка рисовая с творогом | C5: рис | D5: 30 | E5: 30 | G5: 3.36 | H5: 0.57 | I5: 30.36 | J5: 156.8 | K5: 90 | L5: =D5*K5/1000 -> 2.70 | M5: 90 | N5: 2.16
C6: творог | D6: 25 | E6: 25 | G6: 6.76 | H6: 3.75 | I6: 0.81 | J6: 64.4 | K6: 322 | L6: =D6*K6/1000 -> 8.05 | Q6: 322 | R6: =D6*K6/1000 -> 8.05
C7: Яйцо | D7: 0.2 | E7: 0.2 | G7: 1.27 | H7: 1.15 | I7: 0.07 | J7: 15.7 | K7: 10 | L7: 0.00 | Q7: 10 | R7: =D7*K7/1000 -> 0.002
C8: Сахар | D8: 7.5 | E8: 7.5 | I8: 14.97 | J8: 56.85 | K8: 80 | L8: 0.60 | M8: 80 | N8: 0.60
C9: Масло слив | D9: 10 | E9: 10 | G9: 0.04 | H9: 3.63 | I9: 0.28 | J9: 33.05 | K9: 900 | L9: 9.00 | Q9: 900.00 | R9: 9
C10: сметана | D10: 5 | E10: 5 | G10: 0.14 | H10: 1 | I10: 0.16 | J10: 10.3 | K10: 210 | L10: 1.05 | Q10: 210.00 | R10: 1.05
F11: 220
A12: №945 | B12: Чай с сахаром | C12: заварка | D12: 1 | E12: 1 | K12: 688.0 | L12: 0.69 | Q12: 688 | R12: 0.688
C13: Сахар | D13: 15 | E13: 15 | K13: 80.0 | L13: 1.20 | Q13: 80 | R13: 1.2
F14: 200
B15: хлеб | C15: хлеб | D15: 30 | E15: 30 | G15: 7.0 | H15: 1.2 | I15: 33.0 | J15: 181.0 | K15: 78.0 | L15: 2.34 | Q15: 78 | R15: 2.34
C16: хлеб | D16: 20 | E16: 20 | G16: 7.0 | H16: 1.2 | I16: 33.0 | J16: 181.0 | K16: 76.0 | L16: 1.52 | N16: 0 | Q16: 76 | R16: 1.52
L17: =SUM(L5:L16) -> 27.15 | N17: =SUM(N5:N16) -> 2.76 | R17: =SUM(R6:R16) -> 23.85
B24: ИТОГО НА 1 РЕБ
B25: ОБЩИЙ | L25: 670.67 | N25: 145.89 | P25: 29.52 | R25: 494.11
L26: 55.89 | N26: 12.16 | R26: 41.17
